bitfinex-derivatives/quotes_ETHF0:USTF0_20251009
["timestamp","ask_amount","ask_price","bid_price","bid_amount"]
[1759972122970,2.89695305,4503.1,4503.0,1.60161442]
[1759972123164,0.52553676,4503.1,4503.0,6.60161442]
[1759972123371,0.223,4503.7,4503.6,0.2183]
[1759972123571,0.223,4503.7,4503.6,1.53707442]
[1759972123764,3.14639631,4503.7,4503.6,0.82776]
[1759972124070,3.14639631,4503.7,4503.6,1.16306]
[1759972124470,2.92339631,4503.7,4503.6,1.16306]
[1759972124771,3.33911073,4503.8,4503.6,0.82776]
[1759972124973,3.33911073,4503.8,4503.7,0.3353]
[1759972125173,0.39954,4503.8,4503.7,0.3353]
[1759972125372,3.25961184,4503.8,4503.7,0.3353]
[1759972125868,0.39956,4503.6,4503.5,0.1311]
[1759972126073,1.10887442,4503.6,4503.5,0.4664]
[1759972126274,3.56938626,4503.6,4503.5,0.4664]
[1759972126462,0.3996,4503.1,4503.0,0.133]
[1759972126671,0.93231442,4503.1,4503.0,0.133]
[1759972126969,3.7953541,4503.1,4503.0,0.133]
[1759972127276,3.7953541,4503.1,4503.0,0.4683]
[1759972127876,3.08603968,4503.1,4503.0,0.4683]
[1759972128570,3.08603968,4503.1,4503.0,0.133]
[1759972128779,4.08505968,4503.1,4502.5,0.133]
[1759972129072,0.39964,4502.6,4502.5,0.133]
[1759972129262,0.62264,4502.6,4502.5,0.4683]
[1759972129466,3.52082282,4502.6,4502.5,0.4683]
[1759972132666,2.89818282,4502.6,4502.5,0.8965]
[1759972132871,3.4308,4502.7,4502.6,0.7635]
[1759972133365,3.4308,4502.7,4502.6,1.16314]
[1759972133773,3.2078,4502.7,4502.6,1.16314]
[1759972133975,3.60744,4502.7,4502.6,0.3353]
[1759972134474,3.60744,4502.7,4502.6,0.73494]
[1759972134675,6.43037738,4502.7,4502.6,0.73494]
[1759972135178,6.43037738,4502.7,4502.6,0.3353]
[1759972137981,6.43037738,4502.7,4502.6,0.5452]
[1759972138180,6.65337738,4502.7,4502.6,0.94484]
[1759972138477,6.43037738,4502.7,4502.6,1.16314]
[1759972138667,6.65337738,4502.7,4502.6,1.16314]
[1759972139280,6.65337738,4502.7,4502.6,0.7635]
[1759972139773,6.65337738,4502.7,4502.6,1.16314]
[1759972140880,6.43037738,4502.7,4502.6,1.16314]
[1759972141074,6.65337738,4502.7,4502.6,1.16314]
[1759972141478,6.65337738,4502.7,4502.6,0.7635]
[1759972141673,6.65337738,4502.7,4502.6,1.16314]
[1759972141874,6.03073738,4502.7,4502.6,1.16314]
[1759972142280,6.43037738,4502.7,4502.6,1.16314]
[1759972143973,6.03073738,4502.7,4502.6,1.16314]
[1759972144177,0.99912,4502.6,4502.0,0.21228486]
[1759972144385,3.60748,4502.2,4502.1,0.3353]
[1759972144575,3.4308,4502.2,4502.1,0.3353]
[1759972146180,3.2078,4502.2,4502.1,0.3353]
[1759972146481,3.4308,4502.2,4502.1,0.3353]
[1759972147985,3.91722617,4502.2,4502.1,0.3353]
[1759972148192,4.14022617,4502.2,4502.1,0.3353]
[1759972148789,7.06549487,4502.2,4502.1,0.3353]
[1759972150989,0.39969,4502.1,4502.0,0.13348486]
[1759972151187,6.10911617,4502.1,4502.0,0.471]
[1759972151393,3.25643952,4502.1,4502.0,0.471]
[1759972151690,4.18886569,4502.1,4502.0,0.691]
[1759972151897,4.18886569,4502.1,4502.0,0.471]
[1759972152087,4.18886569,4502.1,4502.0,0.47287676]
[1759972152788,4.18886569,4502.1,4502.0,0.00187676]
[1759972154394,4.18886569,4502.1,4502.0,0.47287676]
[1759972154588,3.47943952,4502.1,4502.0,0.47287676]
[1759972154788,3.96586569,4502.1,4502.0,0.47287676]
[1759972155089,4.18886569,4502.1,4502.0,0.47287676]
[1759972155590,2.85674952,4502.1,4502.0,0.91087676]
[1759972155792,3.07974952,4502.1,4502.0,0.91087676]
[1759972156089,2.85674952,4502.1,4502.0,0.91087676]
[1759972156592,3.2078,4502.2,4502.1,1.17489]
[1759972156989,3.2078,4502.2,4502.1,1.88431617]
[1759972157188,3.2078,4502.2,4502.1,1.17489]
[1759972158387,3.2078,4502.2,4502.1,0.7752]
[1759972160788,3.2078,4502.8,4502.5,0.99913]
[1759972160993,3.2078,4502.8,4502.7,1.17484]
[1759972161289,6.27493067,4502.8,4502.7,1.17484]
[1759972161788,11.27493067,4502.8,4502.7,0.3372]
[1759972161993,11.79950105,4502.8,4502.0,0.13567676]
[1759972162193,3.91722617,4502.1,4502.0,0.35567676]
[1759972162393,4.14022617,4502.1,4502.0,0.75536676]
[1759972162587,6.97064756,4502.1,4502.0,0.75536676]
[1759972162793,6.97064756,4502.1,4502.0,0.13567676]
[1759972163994,6.97064756,4502.1,4502.0,0.47287676]
[1759972165496,6.97064756,4502.1,4500.9,0.99948]
[1759972165497,0.39974,4502.0,4501.8,0.39975]
[1759972165697,0.223,4501.9,4501.7,0.39976]
[1759972165897,0.70942617,4501.8,4501.6,0.73697]
[1759972166097,0.223,4501.7,4501.6,0.3372]
[1759972166397,3.06045161,4501.7,4501.5,0.1338]
[1759972166598,3.06045161,4501.7,4501.6,0.33879062]
[1759972166897,6.26825161,4501.7,4501.6,0.33879062]
[1759972169397,11.26825161,4501.7,4501.1,0.3372]
[1759972169601,0.70942617,4501.2,4501.1,0.3372]
[1759972169802,0.93242617,4501.2,4501.1,0.3372]
[1759972170103,3.79261263,4501.2,4501.1,0.3372]
[1759972170396,3.08318646,4501.2,4501.1,0.5572]
[1759972170590,2.86196751,4501.2,4501.1,0.77760384]
[1759972170994,3.08496751,4501.2,4501.1,0.77760384]
[1759972171395,2.86196751,4501.2,4501.1,0.00240384]
[1759972171591,3.08496751,4501.2,4501.1,0.77760384]
[1759972172091,2.86196751,4501.2,4501.1,1.17742384]
[1759972172299,3.2078,4501.7,4501.6,0.438]
[1759972172601,6.27653091,4501.7,4501.6,1.17497]
[1759972173403,6.27864745,4501.7,4501.6,1.17497]
[1759972173904,6.05564745,4501.7,4501.6,1.17497]
[1759972174201,6.27864745,4501.7,4501.6,1.17497]
[1759972175100,6.27864745,4501.7,4501.6,0.73697]
[1759972175403,6.27864745,4501.7,4501.6,0.95697]
[1759972175705,6.27864745,4501.7,4501.6,1.17497]
[1759972176300,0.7386,4501.6,4501.5,0.1338]
[1759972176501,0.7386,4501.6,4501.5,0.75358]
[1759972176701,0.4313,4501.6,4501.5,0.97158]
[1759972177408,3.20991654,4501.7,4501.5,0.97158]
[1759972178309,3.20991654,4501.7,4501.6,0.7752]
[1759972178505,3.42731654,4501.7,4501.6,0.7752]
[1759972180211,3.65451654,4501.7,4501.6,0.7752]
[1759972180803,3.65451654,4501.7,4501.6,1.17497]
[1759972181111,3.98491654,4501.7,4501.6,1.17497]
[1759972181312,3.98491654,4501.7,4501.6,0.95697]
[1759972181711,3.65451654,4501.7,4501.6,1.17657]
[1759972181913,3.98491654,4501.7,4501.6,1.17657]
[1759972182212,3.65451654,4501.7,4501.6,1.17657]
[1759972183205,3.98681654,4501.7,4501.6,1.17657]
[1759972183605,3.98681654,4501.7,4501.6,0.39977]
[1759972183814,4.80769202,4501.7,4501.6,0.39977]
[1759972185010,4.80769202,4501.7,4501.6,0.73367]
[1759972185518,4.80769202,4501.7,4501.6,0.95237]
[1759972186311,4.24819202,4501.7,4501.6,1.16347]
[1759972186711,4.46869202,4501.7,4501.6,1.16347]
[1759972187417,3.64781654,4501.7,4501.6,1.16347]
[1759972188616,3.42731654,4501.7,4501.6,1.16347]
[1759972189625,3.64781654,4501.7,4501.6,1.16347]
[1759972190626,3.87081654,4501.7,4501.6,1.16347]
[1759972190924,3.65031654,4501.7,4501.6,1.16347]
[1759972192725,3.20991654,4501.7,4501.6,1.16347]
[1759972192914,3.2078,4502.7,4502.6,0.82948]
[1759972193119,3.2078,4503.2,4503.1,1.16334]
[1759972193426,6.48484042,4503.2,4503.1,1.16334]
[1759972193722,3.8771,4503.2,4503.1,1.16334]
[1759972193920,6.48701316,4503.2,4503.1,1.16334]
[1759972194238,6.26371316,4503.2,4503.1,1.16334]
[1759972194422,7.04231316,4503.2,4503.1,1.16334]
[1759972194726,6.71001316,4503.2,4503.1,1.16334]
[1759972195224,7.04231316,4503.2,4503.1,0.95224]
[1759972197223,6.04071316,4503.2,4503.1,1.16334]
[1759972197431,3.20967219,4503.2,4503.1,1.16334]
[1759972199228,0.00187219,4503.2,4503.1,6.16334]
[1759972200925,0.44817219,4503.2,4503.1,0.95224]
[1759972201127,0.78047219,4503.2,4503.1,0.95224]
[1759972201729,0.78047219,4503.2,4503.1,0.39964]
[1759972201929,6.82801657,4503.2,4503.0,0.39964]
[1759972202125,0.4893,4503.0,4502.9,0.39965]
[1759972202431,3.66134438,4503.0,4502.9,0.39965]
[1759972203329,3.66134438,4503.0,4502.6,0.39968]
[1759972203330,0.2258,4502.7,4502.6,0.39968]
[1759972203537,4.2094,4502.7,4502.6,0.39968]
[1759972203730,7.1231406,4502.7,4502.6,0.39968]
[1759972204031,6.9001406,4502.7,4502.6,0.39968]
[1759972204229,7.1231406,4502.7,4502.6,0.39968]
[1759972204728,6.1215406,4502.7,4502.6,1.16338]
[1759972205122,6.3473406,4502.7,4502.6,1.16338]
[1759972205327,6.5678406,4502.7,4502.6,1.16338]
[1759972205825,0.00187219,4503.2,4503.1,1.16334]
[1759972208228,0.00187219,4503.2,4503.1,1.38634]
[1759972211131,3.2078,4504.5,4504.4,1.15202]
[1759972211834,3.4344,4504.5,4504.4,1.15202]
[1759972212030,3.43657521,4504.5,4504.4,1.1541305]
[1759972214529,3.20997521,4504.5,4504.4,1.1541305]
[1759972214734,0.00217521,4504.5,4504.4,1.1541305]
[1759972216336,0.44607521,4504.5,4504.4,1.1541305]
[1759972216534,12.19495823,4504.5,4504.4,0.0021105]
[1759972219228,12.19495823,4504.5,4503.1,0.5395]
[1759972219229,0.4439,4503.2,4503.1,0.5395]
[1759972219428,0.7833,4503.2,4502.7,0.327]
[1759972219633,3.72766748,4503.2,4503.1,0.39964]
[1759972220229,3.72766748,4503.2,4503.1,0.72908906]
[1759972220538,3.38826748,4503.2,4503.1,0.94158906]
[1759972221342,3.72766748,4503.2,4503.1,0.94158906]
[1759972221539,3.2078,4503.9,4503.8,0.93908]
[1759972221736,3.6517,4503.9,4503.8,1.15208]
[1759972222040,6.4761838,4503.9,4503.8,1.15208]
[1759972222641,6.8155838,4503.9,4503.8,1.15208]
[1759972223143,6.4761838,4503.9,4503.8,1.15208]
[1759972224036,3.2078,4503.9,4503.8,1.15208]
[1759972226750,3.2078,4504.4,4504.3,1.15203]
[1759972226939,3.4308,4504.4,4504.3,1.15203]
[1759972227241,6.30292445,4504.4,4504.3,1.15203]
[1759972229041,3.2078,4504.4,4504.3,1.15203]
[1759972231950,3.4344,4504.4,4504.3,1.15203]
[1759972232343,3.2078,4504.4,4504.3,1.15203]
[1759972235150,3.4344,4504.4,4504.3,1.15203]
[1759972235355,3.2078,4504.4,4504.3,1.15203]
[1759972238549,0.00217521,4504.5,4504.4,0.62552]
[1759972238747,0.00217521,4504.5,4504.4,1.14612]
[1759972242650,0.73624,4505.4,4504.4,1.14612]
[1759972242651,3.2078,4505.4,4505.3,0.4391]
[1759972242856,3.4242,4505.4,4505.3,1.14604]
[1759972243752,3.63502133,4505.4,4505.3,1.14604]
[1759972246354,3.42612133,4505.4,4505.3,1.14604]
[1759972247256,3.20972133,4505.4,4505.3,1.14604]
[1759972249655,0.00192133,4505.4,4505.3,1.36904]
[1759972250456,3.2078,4505.9,4505.8,0.3994]
[1759972250661,3.2078,4505.9,4505.8,1.8655728]
[1759972250962,6.05427246,4505.9,4505.8,1.8655728]
[1759972251662,6.48364129,4505.9,4505.8,0.7578]
[1759972252056,6.27474129,4505.9,4505.8,0.7578]
[1759972253457,6.05584129,4505.9,4505.8,1.4661728]
[1759972253655,3.20936883,4505.9,4505.8,1.4661728]
[1759972254456,0.00156883,4505.9,4505.8,1.8655728]
[1759972258257,3.2078,4506.5,4506.4,0.82355]
[1759972258462,3.2078,4506.5,4506.4,1.8655228]
[1759972259157,3.2099794,4506.5,4506.4,1.86716769]
[1759972259863,3.2099794,4506.5,4506.4,2.09016769]
[1759972260363,0.0021794,4506.5,4506.4,2.09016769]
[1759972261159,0.0021794,4506.5,4506.4,7.79854049]
[1759972261361,0.2210794,4506.5,4506.4,0.75944489]
[1759972261560,3.9557794,4506.5,4506.4,0.33524489]
[1759972261761,3.9557794,4506.5,4506.4,0.73459489]
[1759972262062,3.9557794,4506.5,4506.4,0.33524489]
[1759972262261,3.9557794,4506.5,4506.4,0.94539489]
[1759972263069,3.9557794,4506.5,4506.4,0.54604489]
[1759972263367,3.9557794,4506.5,4506.4,0.94539489]
[1759972265365,3.9557794,4506.5,4506.4,0.40099489]
[1759972265765,3.9557794,4506.5,4506.4,0.94539489]
[1759972266381,3.9557794,4506.5,4506.4,1.15879489]
[1759972266382,3.6377794,4506.5,4506.4,1.15879489]
[1759972266879,3.4288794,4506.5,4506.4,1.15879489]
[1759972267275,0.0021794,4506.5,4506.4,1.86716769]
[1759972272478,0.2099794,4506.5,4506.4,1.89266769]
[1759972272680,0.2099794,4506.5,4506.4,2.11746769]
[1759972273089,0.0021794,4506.5,4506.4,2.11746769]
[1759972275584,0.0021794,4506.5,4506.4,2.82584049]
[1759972275982,3.2078,4507.5,4507.4,1.17096]
[1759972276178,3.2078,4508.0,4507.9,0.39921]
[1759972276482,3.2078,4508.0,4507.9,2.1022828]
[1759972276679,3.2078,4508.0,4507.9,2.8106556]
[1759972276884,3.2078,4508.5,4508.4,1.17087]
[1759972277187,3.20988018,4508.5,4508.4,2.1022428]
[1759972277688,0.00208018,4508.5,4508.4,2.1022428]
[1759972282284,0.00208018,4508.5,4508.4,1.7030728]
[1759972283187,0.20988018,4508.5,4508.4,0.7717]
[1759972283385,0.42118018,4508.5,4508.4,0.9947]
[1759972283592,0.42118018,4508.5,4508.4,1.7030728]
[1759972284290,0.42118018,4508.5,4508.4,1.4800728]
[1759972284494,0.42118018,4508.5,4508.4,1.7030728]
[1759972285384,0.3356,4508.1,4507.6,0.7083728]
[1759972285583,0.7547,4507.6,4507.5,0.3202]
[1759972285892,0.3356,4507.2,4507.0,0.223]
[1759972286094,0.4191,4507.1,4507.0,0.7699]
[1759972286387,0.4191,4507.6,4507.5,0.2267]
[1759972286592,0.4191,4507.6,4507.5,0.8951]
[1759972286796,3.24328037,4507.6,4507.5,0.8951]
[1759972286987,3.24328037,4507.6,4507.5,1.6034728]
[1759972289593,3.57888037,4507.6,4507.5,0.8951]
[1759972290394,3.24328037,4507.6,4507.5,0.8951]
[1759972292488,3.2078,4507.9,4507.5,1.6034728]
[1759972292690,3.2078,4507.9,4507.8,1.4800728]
[1759972292893,3.2078,4507.9,4507.8,1.7030728]
[1759972293189,3.9625,4507.9,4507.8,0.5432]
[1759972293389,6.86917978,4507.9,4507.8,0.223]
[1759972293593,6.86917978,4507.9,4507.1,0.7717]
[1759972293594,0.2078,4507.2,4507.1,0.7717]
[1759972293897,0.2078,4507.2,4507.1,0.9947]
[1759972294201,0.4191,4507.2,4507.1,0.9947]
[1759972294792,0.2078,4507.2,4507.1,0.9947]
[1759972297799,0.4191,4507.6,4507.5,0.8951]
[1759972297995,3.4156,4507.9,4507.8,0.4515]
[1759972298192,3.2078,4507.9,4507.8,0.7717]
[1759972298598,3.6305,4507.9,4507.8,0.7717]
[1759972299401,3.4156,4507.9,4507.8,0.7717]
[1759972300601,3.4156,4507.9,4507.8,1.17092]
[1759972300797,3.6305,4507.9,4507.8,0.3202]
[1759972301000,3.6305,4507.9,4507.5,0.223]
[1759972301001,0.3399,4507.6,4507.5,0.223]
[1759972301302,0.3399,4507.2,4506.1,1.81715999]
[1759972301498,0.7732,4506.8,4506.5,0.4349]
[1759972301799,3.61898785,4506.7,4506.6,0.223]
[1759972302901,3.61898785,4506.7,4506.6,0.5345]
[1759972303102,3.61898785,4506.7,4506.6,0.7535]
[1759972304199,0.7321,4506.5,4506.4,0.55014489]
[1759972304598,3.60187732,4506.5,4506.4,0.55014489]
[1759972305098,3.29367732,4506.5,4506.4,0.76734489]
[1759972305299,3.29367732,4506.5,4506.4,0.33974489]
[1759972305701,3.60187732,4506.5,4506.4,0.55014489]
[1759972306699,3.60187732,4506.5,4506.4,0.76734489]
[1759972306897,3.29367732,4506.5,4506.4,0.76734489]
[1759972307303,3.60187732,4506.5,4506.4,0.76734489]
[1759972308906,3.29367732,4506.5,4506.4,0.76734489]
[1759972310511,3.29367732,4506.5,4506.4,1.16669489]
[1759972311411,3.60187732,4506.5,4506.4,1.16669489]
[1759972311710,3.29367732,4506.5,4506.4,1.16669489]
[1759972312105,3.29367732,4506.5,4506.4,0.76734489]
[1759972312309,3.29367732,4506.5,4506.4,1.16669489]
[1759972312808,3.08187732,4506.5,4506.4,1.16669489]
[1759972313010,3.08187732,4506.5,4506.4,0.76734489]
[1759972313205,3.29367732,4506.5,4506.4,0.76734489]
[1759972314011,3.60187732,4506.5,4506.4,0.76734489]
[1759972314410,3.60187732,4506.5,4506.4,0.33974489]
[1759972314609,3.60187732,4506.5,4506.4,0.55014489]
[1759972317917,3.60187732,4506.5,4506.4,0.00164489]
[1759972318812,3.60187732,4506.5,4506.4,0.33974489]
[1759972319816,3.60187732,4506.5,4506.4,0.73909489]
[1759972320024,3.60187732,4506.5,4506.4,0.94949489]
[1759972320422,3.29367732,4506.5,4506.4,1.16669489]
[1759972323515,3.08187732,4506.5,4506.4,1.16669489]
[1759972324125,3.29367732,4506.5,4506.4,0.76734489]
[1759972324325,3.60187732,4506.5,4506.4,0.33974489]
[1759972324622,3.60187732,4506.5,4506.4,0.73909489]
[1759972325721,3.60187732,4506.5,4506.4,0.94949489]
[1759972326220,3.2078,4506.6,4506.5,0.53424]
[1759972326419,3.2078,4506.6,4506.5,2.11866999]
[1759972328420,0.2121,4507.2,4507.1,0.82688]
[1759972328619,3.2078,4507.3,4507.2,0.39928]
[1759972328823,3.2078,4507.3,4507.2,1.16758]
[1759972330031,3.9343,4507.3,4507.0,0.1349]
[1759972330322,0.4151,4506.6,4506.5,0.223]
[1759972330726,3.27950476,4506.6,4506.5,0.223]
[1759972330927,3.59090476,4506.6,4506.5,0.223]
[1759972331220,0.0439,4506.5,4506.4,0.00164489]
[1759972331422,0.7704,4506.5,4506.4,0.00164489]
[1759972332019,3.67056877,4506.5,4506.4,0.00164489]
[1759972332422,3.89356877,4506.5,4506.4,0.00164489]
[1759972332627,9.42009016,4506.5,4506.4,0.00164489]
[1759972333216,9.42009016,4506.5,4505.5,1.07932]
[1759972333217,1.12592,4505.6,4505.2,0.3323]
[1759972333531,0.7265,4504.9,4504.8,0.94869]
[1759972333825,0.7265,4504.9,4504.8,0.223]
[1759972334235,0.72858746,4504.9,4504.8,0.22560466]
[1759972334824,3.65745491,4504.9,4504.8,0.22560466]
[1759972335732,3.13675491,4504.9,4504.8,0.99390466]
[1759972335924,0.00208746,4504.9,4504.8,0.99390466]
[1759972341227,3.2078,4505.7,4505.6,1.16772]
[1759972341422,4.02226,4506.3,4506.2,0.2169]
[1759972341628,4.33366,4506.3,4506.2,0.5492]
[1759972341927,7.22149698,4506.3,4506.2,0.3323]
[1759972342130,7.22433206,4506.3,4506.2,0.3323]
[1759972342331,7.22433206,4506.3,4506.2,0.5492]
[1759972342934,7.22433206,4506.3,4506.2,0.3323]
[1759972343531,6.51357206,4506.3,4506.2,1.58702999]
[1759972343729,3.21063508,4506.3,4506.2,1.58702999]
[1759972345938,3.41643508,4506.3,4506.2,1.58702999]
[1759972346134,3.62573508,4506.3,4506.2,0.7683]
[1759972346735,3.93713508,4506.3,4506.2,0.7683]
[1759972348237,0.2093,4505.5,4505.4,0.73174]
[1759972348432,0.4151,4505.5,4505.4,1.39074]
[1759972348736,0.4151,4505.7,4505.6,0.39941]
[1759972348931,4.33371,4505.7,4505.5,0.135]
[1759972349132,0.7265,4505.5,4505.4,0.223]
[1759972349336,0.7265,4505.5,4505.4,0.5553]
[1759972349528,3.60186551,4505.5,4505.4,0.5553]
[1759972349936,3.60186551,4505.5,4505.4,0.7722]
[1759972350341,3.29046551,4505.5,4505.4,0.9913]
[1759972351043,3.60186551,4505.5,4505.4,0.223]
[1759972351542,3.60186551,4505.5,4505.4,0.5553]
[1759972351839,3.60186551,4505.5,4505.4,0.7722]
[1759972353341,4.00129551,4505.5,4505.4,0.7722]
[1759972353537,4.00129551,4505.5,4505.4,0.5553]
[1759972353840,3.60186551,4505.5,4505.4,0.5553]
[1759972354037,3.60186551,4505.5,4505.4,0.7722]
[1759972355838,3.60186551,4505.5,4505.4,1.17164]
[1759972356034,3.81297,4506.2,4506.1,0.7683]
[1759972356437,6.73162888,4506.2,4506.1,0.7683]
[1759972356638,6.33225888,4506.2,4506.1,0.7683]
[1759972356832,6.33225888,4506.2,4506.1,1.16767]
[1759972357240,6.73161888,4506.2,4506.1,0.7683]
[1759972358742,3.2078,4506.2,4506.1,1.16767]
[1759972359448,3.4277,4506.2,4506.1,1.16767]
[1759972360348,4.03766,4506.2,4506.1,0.7683]
[1759972360550,4.34916,4506.2,4506.1,0.5492]
[1759972360748,6.80827328,4506.2,4506.1,0.5492]
[1759972361149,6.49677328,4506.2,4506.1,1.16697]
[1759972361845,3.2078,4506.2,4506.1,1.16697]
[1759972362648,3.4277,4506.2,4506.1,1.16697]
[1759972363040,3.6383,4506.2,4506.1,1.16697]
[1759972364246,3.4277,4506.2,4506.1,1.16697]
[1759972365451,3.2078,4506.2,4506.1,1.16697]
[1759972365751,0.00283508,4506.3,4506.2,1.14756]
[1759972366249,0.00283508,4506.3,4506.2,6.14756]
[1759972368048,3.2078,4507.0,4506.9,1.1475]
[1759972368251,3.2078,4507.0,4506.9,1.3705]
[1759972369159,3.21004724,4507.0,4506.9,1.3705]
[1759972369957,3.41484724,4507.0,4506.9,1.67887574]
[1759972370768,3.64184724,4507.0,4506.9,1.67887574]
[1759972371554,3.41484724,4507.0,4506.9,2.07817574]
[1759972371948,3.21004724,4507.0,4506.9,2.07817574]
[1759972372558,0.00224724,4507.0,4506.9,2.07817574]
[1759972373262,0.20704724,4507.0,4506.9,2.07817574]
[1759972374768,0.00224724,4507.0,4506.9,2.07817574]
[1759972375566,0.20704724,4507.0,4506.9,2.07817574]
[1759972376765,0.00224724,4507.0,4506.9,2.07817574]
[1759972378763,0.60393,4508.4,4508.3,0.7482]
[1759972378960,0.2048,4508.4,4508.3,1.45587574]
[1759972379159,3.29430329,4508.4,4508.3,1.45587574]
[1759972379365,2.86250329,4508.4,4508.3,1.45587574]
[1759972379669,3.4126,4509.0,4508.9,0.7482]
[1759972379863,3.41539617,4509.0,4508.9,1.45587574]
[1759972380062,6.27789946,4509.0,4508.9,1.45587574]
[1759972380262,0.00279617,4509.0,4508.9,1.45587574]
[1759972386066,0.20759617,4509.0,4508.9,1.45587574]
[1759972386470,0.00279617,4509.0,4508.9,1.45587574]
[1759972389073,0.00279617,4509.0,4508.9,1.85496574]
[1759972392073,3.2078,4510.0,4509.9,1.1385]
[1759972392266,3.4183,4510.7,4510.6,0.7395]
[1759972392466,3.4183,4510.7,4510.6,1.44717574]
[1759972392778,6.23614938,4510.7,4510.6,1.44717574]
[1759972392971,6.23807796,4510.7,4510.6,1.44717574]
[1759972393178,3.03027796,4510.7,4510.6,1.44717574]
[1759972393380,0.00192858,4510.7,4510.6,1.44717574]
[1759972394269,0.21242858,4510.7,4510.6,1.44717574]
[1759972397873,0.43852858,4510.7,4510.6,0.7395]
[1759972398073,0.83556,4510.3,4510.2,3.2078]
[1759972398280,1.15526,4510.3,4510.2,3.2078]
[1759972398576,4.05208871,4510.3,4510.2,3.7365]
[1759972398776,3.73238871,4510.3,4510.2,3.9473]
[1759972399278,9.05208871,4510.3,4510.2,3.2078]
[1759972400374,1.15528,4510.1,4510.0,0.223]
[1759972400677,3.99261632,4510.1,4510.0,0.223]
[1759972401283,1.15537,4509.1,4509.0,0.6582]
[1759972401480,0.3976,4509.0,4508.3,3.20947907]
[1759972401674,0.7563,4508.4,4508.3,3.96117907]
[1759972402380,0.7563,4508.4,4508.3,3.74577907]
[1759972403883,0.7563,4508.4,4508.3,3.96117907]
[1759972405479,0.4366,4508.4,4508.3,3.96117907]
[1759972405679,0.4366,4508.4,4508.3,4.17197907]
[1759972410187,0.7563,4508.4,4508.3,3.74577907]
[1759972411082,1.15543,4508.4,4508.3,3.74577907]
[1759972411580,1.15543,4508.4,4508.3,3.96117907]
[1759972412288,1.15543,4508.4,4508.3,4.17197907]
[1759972412289,0.4366,4508.4,4508.3,4.17197907]
[1759972413083,0.7563,4508.4,4508.3,4.17197907]
[1759972413283,1.15543,4508.4,4508.3,4.17197907]
[1759972413481,1.15543,4508.4,4508.3,3.74577907]
[1759972413985,1.15543,4508.4,4508.3,3.96117907]
[1759972414290,0.83573,4508.4,4508.3,4.17197907]
[1759972414483,0.83573,4508.4,4508.3,4.57111907]
[1759972414684,0.83573,4508.4,4508.3,4.17197907]
[1759972415488,1.15543,4508.4,4508.3,4.17197907]
[1759972416080,3.99478577,4508.4,4508.3,3.20947907]
[1759972416786,8.99478577,4508.4,4508.3,3.20947907]
[1759972421189,3.99478577,4508.4,4508.3,3.20947907]
[1759972421495,4.21778577,4508.4,4508.3,3.54837907]
[1759972421884,4.21778577,4508.4,4508.3,3.20947907]
[1759972425594,4.21778577,4508.4,4508.3,0.00167907]
[1759972428299,4.21778577,4508.4,4507.9,0.223]
[1759972428300,1.20687,4508.0,4507.9,0.223]
[1759972428594,0.39918,4507.8,4507.7,3.2078]
[1759972428800,1.16348,4507.8,4507.7,3.2078]
[1759972428995,4.00547264,4507.8,4507.7,3.2078]
[1759972429492,4.00547264,4507.8,4507.7,3.21024769]
[1759972430199,4.00547264,4507.8,4507.7,0.00244769]
[1759972430789,4.22847264,4507.8,4507.7,0.00244769]
[1759972431198,4.75156957,4507.8,4507.7,0.00244769]
[1759972432590,0.2133,4506.5,4506.4,0.3231]
[1759972432787,0.7643,4506.3,4506.2,3.60712]
[1759972433498,0.76622261,4506.3,4506.2,3.53335534]
[1759972433695,0.76622261,4506.3,4506.2,3.21025534]
[1759972434097,0.76622261,4506.3,4506.2,3.75245534]
[1759972434890,0.43832261,4506.3,4506.2,3.95715534]
[1759972435096,0.00192261,4506.3,4506.2,3.95715534]
[1759972435993,0.00192261,4506.3,4506.2,8.95715534]
[1759972436197,0.61251,4507.5,4507.4,0.2047]
[1759972436498,3.56301819,4507.5,4507.4,0.7469]
[1759972436803,3.78611819,4507.5,4507.4,0.7469]
[1759972437192,1.16354,4507.2,4507.1,3.2078]
[1759972437396,0.7643,4506.9,4506.8,0.72237]
[1759972437693,0.7643,4506.9,4506.2,1.00075534]
[1759972437694,0.83572,4506.3,4506.2,0.00245534]
[1759972437893,1.16362,4506.3,4506.2,0.00245534]
[1759972438093,4.07306014,4506.3,4506.2,0.00245534]
[1759972440497,4.29606014,4506.3,4506.2,0.00245534]
[1759972442904,4.07306014,4506.3,4506.2,0.00245534]
[1759972443203,4.29606014,4506.3,4506.2,0.00245534]
[1759972443800,3.89674014,4506.3,4506.2,0.00245534]
[1759972444006,0.4364,4506.3,4506.2,0.74935534]
[1759972444299,0.4364,4506.4,4506.3,0.39931]
[1759972444501,1.16361,4506.4,4506.3,0.3231]
[1759972444906,0.83571,4506.4,4506.2,0.40177534]
[1759972445108,0.7643,4506.3,4506.2,0.40177534]
[1759972445310,0.7643,4506.3,4506.2,0.94397534]
[1759972445808,0.4364,4506.3,4506.2,1.14867534]
[1759972446198,0.7643,4506.3,4506.2,0.74935534]
[1759972446506,3.68417186,4506.3,4506.2,0.00245534]
[1759972447206,1.16368,4505.6,4505.5,3.2078]
[1759972447511,4.08433334,4505.6,4505.5,3.2078]
[1759972448207,4.08433334,4505.6,4505.5,3.21005873]
[1759972451710,3.68495334,4505.6,4505.5,3.21005873]
[1759972452407,4.08433334,4505.6,4505.5,3.21005873]
[1759972453214,4.30733334,4505.6,4505.5,3.21005873]
[1759972454514,4.30733334,4505.6,4505.5,3.51755873]
[1759972454709,4.30733334,4505.6,4505.5,3.91694873]
[1759972455014,4.30733334,4505.6,4505.5,3.60944873]
[1759972455216,4.08433334,4505.6,4505.5,3.60944873]
[1759972455616,4.08433334,4505.6,4505.5,3.21005873]
[1759972456009,4.08433334,4505.6,4505.5,3.60944873]
[1759972456211,4.08433334,4505.6,4505.5,3.91694873]
[1759972456407,3.68495334,4505.6,4505.5,3.91694873]
[1759972456611,4.08433334,4505.6,4505.5,3.91694873]
[1759972456907,3.35705334,4505.6,4505.5,4.14354873]
[1759972457109,2.92065334,4505.6,4505.5,4.71744873]
[1759972457307,0.84456,4505.9,4505.8,1.15666]
[1759972457510,1.05716,4505.9,4505.8,0.7573]
[1759972457713,3.94779269,4505.9,4505.8,1.15666]